Cogmind - Beta 14 @@@ ROGUE MODE // 2024.09.01 @ 10:30:52 Player: Olafz Result: Destroyed by G-34 Mercenary with Small Laser Performance ------------- Evolutions (0) 0 Regions Visited (2) 400 Robots Destroyed (2) 10 Value Destroyed (9) 9 Prototype IDs (0) 0 Alien Tech Used (0) 0 Bonus (0) 0 TOTAL SCORE: 419 Bonus ------- None Cogmind --------- Core Integrity 0/250 Matter 300/300 Energy 100/100 System Corruption 0% Temperature Cool (18) Movement Core (200) Ox3 Location -10/Mines Parts ------- > --- POWER (1) -------- (None) > --- PROPULSION (2) --- (None) > --- UTILITY (2) ------ Medium Storage Unit > --- WEAPON (2) ------- (None) > --- INVENTORY (10) --- Light Ion Engine Heat Sink Small Storage Unit Experimental Sensor Array EM Pulse Gun Peak State ------------ > --- POWER ------------ Light Ion Engine > --- PROPULSION ------- Light Treads Light Treads > --- UTILITY ---------- Heat Sink Small Storage Unit > --- WEAPON ----------- EM Pulse Gun Light Assault Rifle > --- INVENTORY -------- Light Ion Engine Heat Sink Experimental Sensor Array [Rating: 8] Favorites ----------- Power Light Ion Engine Engine Light Ion Engine Propulsion Light Treads Treads Light Treads Utility Heat Sink Device Heat Sink Storage Small Storage Unit Weapon EM Pulse Gun Energy Gun EM Pulse Gun Ballistic Gun Light Assault Rifle Launcher Grenade Launcher Build | -11 -10 -10 ------- Run | Yrd Mat Min Slots Evolved . | . . . Power . | . . . Propulsion . | . . . Utility . | . . . Weapon . | . . . Parts Attached 10 | 6 1 3 Power 1 | 1 . . Engine 1 | 1 . . Core . | . . . Reactor . | . . . Propulsion 2 | 2 . . Treads 2 | 2 . . Leg . | . . . Wheel . | . . . Hover . | . . . Flight . | . . . Utility 3 | 1 1 1 Device 1 | . 1 . Storage 2 | 1 . 1 Processor . | . . . Hackware . | . . . Protection . | . . . Artifact . | . . . Weapon 4 | 2 . 2 Energy Gun 1 | 1 . . Energy Cannon . | . . . Ballistic Gun 2 | 1 . 1 Ballistic Cannon . | . . . Launcher 1 | . . 1 Special Weapon . | . . . Impact Weapon . | . . . Slashing Weapon . | . . . Piercing Weapon . | . . . Special Melee Weapon . | . . . Unidentified Prototypes . | . . . Parts Lost 7 | . . 7 Power 1 | . . 1 Propulsion 2 | . . 2 Utility 1 | . . 1 Weapon 3 | . . 3 Highest Loss Streak 5 | . . 5 To Critical Strikes . | . . . Average Slot Usage (%) 91 | . 97 89 Engine 12 | . 14 12 Treads 26 | . 28 26 Device 11 | . 11 12 Storage 14 | . 14 14 Energy Gun 12 | . 14 11 Ballistic Gun 11 | . 14 10 Peak Build Rating 8 | 6 7 8 Average Rating 6 | 4 6 7 On Entrance 4 | . 6 7 Naked Turns . | . . . Heaviest Build 19 | 11 12 19 Greatest Support 40 | 40 40 40 Greatest Overweight (x) 3 | . . 3 Average Overweight (x) . | . . . Largest Inventory Capacity 10 | 8 8 10 Average Capacity 8 | 6 8 9 Most Carried 6 | 1 2 6 Average Carried 3 | . 1 4 Final Capacity 10 | 8 8 10 Final Carried 5 | 1 2 5 Class Distribution -------------------- 100% | Mutant Dominant Class ---------------- Mutant | -10/Materials Mutant | -10/Mines Resources | -11 -10 -10 ----------- Run | Yrd Mat Min Matter Collected 311 | 257 . 54 Remotely . | . . . Salvage Created 88 | . 60 28 Parts 4 | . 1 3 Haulers Intercepted 1 | . 1 . Recyclers Shooed . | . . . Parts Field Recycled . | . . . Retrieved Matter . | . . . Parts Self-Destructed . | . . . Prevented . | . . . Kills | -11 -10 -10 ------- Run | Yrd Mat Min Combat Hostiles Destroyed 1 | . . 1 Guns 1 | . . 1 Classes Destroyed 3 | . 1 2 Tunneler 1 | . . 1 Hauler 1 | . 1 . Assembled 1 | . . 1 Best Kill Streak 1 | . 1 1 Combat Bots Only 1 | . . 1 Max Kills in Single Turn 1 | . 1 1 Gunslinging . | . . . Exploded . | . . . Melee . | . . . Uniques/NPCs Destroyed . | . . . Combat | -11 -10 -10 -------- Run | Yrd Mat Min Hostile Shots Fired 46 | . 1 45 Missed 10 | . 1 9 Damage Taken 830 | . . 830 Core 254 | . . 254 Absorbed by Shields . | . . . Core Remaining (%) 100 | 100 . . Volleys Fired 29 | . 13 16 Largest 2 | . 2 2 Hottest 70 | . 60 70 Shots Fired 50 | . 26 24 Gun 47 | . 26 21 Cannon . | . . . Launcher 3 | . . 3 Special . | . . . Kinetic 20 | . 13 7 Thermal . | . . . Explosive 3 | . . 3 Electromagnetic 27 | . 13 14 Robot Hit Streak 4 | . 4 2 Robot Miss Streak 9 | . 9 1 Penetration Max . | . . . Secondary Targets . | . . . Shots Hit Robots 15 | . 12 3 Core Hits 5 | . 2 3 Critical Kills . | . . . Critical Parts Destroyed 1 | . . 1 Critical Strikes 1 | . . 1 Destroy 1 | . . 1 Melee Attacks . | . . . Impact . | . . . Slashing . | . . . Piercing . | . . . Sneak Attacks . | . . . Combat Hostiles . | . . . Follow-up Attacks . | . . . Damage Inflicted 209 | . 126 83 Guns 158 | . 126 32 Cannons . | . . . Explosions 51 | . . 51 Melee . | . . . Ramming . | . . . Kinetic 85 | . 76 9 Thermal . | . . . Explosive 51 | . . 51 Electromagnetic 73 | . 50 23 Impact . | . . . Slashing . | . . . Piercing . | . . . Highest Corruption . | . . . Average Corruption . | . . . Corruption Purged . | . . . Corruption Blocked . | . . . Overload Shots . | . . . Overflow Damage . | . . . Projectiles . | . . . Explosions . | . . . Melee . | . . . Knockbacks . | . . . Impact . | . . . Kinetic . | . . . Secondary . | . . . Self-Inflicted Damage 32 | . . 32 Shots 2 | . . 2 Rammed 1 | . . 1 Targets Rammed 1 | . . 1 Kicked . | . . . Crushed . | . . . Highest Temperature . | . . . Average Temperature . | . . . Received Heat Transfer 108 | . . 108 Siege Activations . | . . . Robots Corrupted . | . . . Combat Hostiles . | . . . Parts Fried . | . . . Impact Corruptions . | . . . Robots Melted . | . . . Combat Hostiles . | . . . Parts Melted . | . . . Heat Transferred . | . . . Parts Sabotaged . | . . . Parts Stolen . | . . . Parts Stripped . | . . . Power Chain Reactions . | . . . Alert | -11 -10 -10 ------- Run | Yrd Mat Min Peak Influence 52 | . 52 36 Initial 19 | . . 19 Average 15 | . 14 17 Maximum Alert Level . | . . . Low Security (%) 100 | 100 100 100 Level 1 . | . . . Level 2 . | . . . Level 3 . | . . . Level 4 . | . . . Level 5 . | . . . High Security . | . . . Max Security . | . . . Squads Dispatched 1 | . 1 . Investigation . | . . . Extermination . | . . . Reinforcement 1 | . 1 . Assault . | . . . Garrison . | . . . Intercept . | . . . Searches Triggered . | . . . Construction Impeded . | . . . Haulers Reinforced . | . . . Active Scanning Responses . | . . . Cargo Convoy Interrupts . | . . . Stealth | -11 -10 -10 --------- Run | Yrd Mat Min Distress Signals 1 | . 1 . Communications Jammed . | . . . Distress Signals . | . . . Times Spotted 10 | . 4 6 Peak Tracking Total 4 | . 3 4 Tactical Retreats . | . . . Traps | -11 -10 -10 ------- Run | Yrd Mat Min Traps Triggered . | . . . Indirectly . | . . . Trap Hack Attempts . | . . . Triggered . | . . . Disarmed . | . . . Reprogrammed . | . . . Reused . | . . . Traps Extracted . | . . . Installed . | . . . Triggered . | . . . Machines | -11 -10 -10 ---------- Run | Yrd Mat Min Machines Disabled . | . . . Max in Single Turn . | . . . Machines Repaired . | . . . Machines Dismantled . | . . . Machines Sabotaged . | . . . Overloaded Fab Kills . | . . . Hacking | -11 -10 -10 --------- Run | Yrd Mat Min Machines Accessed 1 | . 1 . Terminals 1 | . 1 . Fabricators . | . . . Repair Stations . | . . . Recycling Units . | . . . Scanalyzers . | . . . Garrison Access . | . . . Total Hacks 1 | . 1 . Successful 1 | . 1 . Failed . | . . . Catastrophic . | . . . Database Lockouts . | . . . Manual 1 | . 1 . Terminals 1 | . 1 . Fabricators . | . . . Repair Stations . | . . . Recycling Units . | . . . Scanalyzers . | . . . Garrison Access . | . . . Terminal Hacks . | . . . Fabricator Hacks . | . . . Repair Station Hacks . | . . . Recycling Unit Hacks . | . . . Scanalyzer . | . . . Garrison Access Hacks . | . . . Unauthorized Hacks 1 | . 1 . Terminals 1 | . 1 . Botnet 1 | . 1 . Fabricators . | . . . Repair Stations . | . . . Recycling Units . | . . . Scanalyzers . | . . . Garrison Access . | . . . Data Cores Recovered . | . . . Used . | . . . Hacking Detections . | . . . Full Trace Events . | . . . Feedback Events . | . . . Feedback Blocked . | . . . Robot Schematics Acquired . | . . . Robots Built . | . . . Authchips . | . . . Time . | . . . Total Robot Build Rating . | . . . Part Schematics Acquired . | . . . Parts Built . | . . . Authchips . | . . . Time . | . . . Total Part Build Rating . | . . . Parts Repaired . | . . . Time . | . . . Parts Recycled . | . . . Recycled Matter . | . . . Retrieved Matter . | . . . Retrieved Components . | . . . Parts Scanalyzed . | . . . Part Schematics Acquired . | . . . Parts Damaged . | . . . Bothacking | -11 -10 -10 ------------ Run | Yrd Mat Min Used RIF Installer . | . . . Robots Hacked . | . . . Non-combat . | . . . Combat . | . . . Robot Hacks Applied . | . . . Relay Couplers Released . | . . . Fabnet Peak Effective % . | . . . Robots Rewired . | . . . Allies Hacked . | . . . Hacks Repelled . | . . . Allies | -11 -10 -10 -------- Run | Yrd Mat Min Total Allies . | . . . Largest Group . | . . . Highest-Rated Group . | . . . Highest-Rated Ally . | . . . Total Orders . | . . . Ally Attacks . | . . . Total Damage . | . . . Kills . | . . . Allies Corrupted . | . . . Allies Melted . | . . . Intel | -11 -10 -10 ------- Run | Yrd Mat Min Robot Analysis Total . | . . . Derelict Logs Recovered 2 | . . 2 Drone Launches . | . . . Drone Recoveries . | . . . Exploration | -11 -10 -10 ------------- Run | Yrd Mat Min Turns Passed 934 | 61 252 621 Spaces Moved 499 | 34 134 331 Core 5 | 3 . 2 Treads 494 | 31 134 329 Legs . | . . . Wheels . | . . . Hover . | . . . Flight . | . . . Fastest Speed 50 | 50 160 160 Average Speed 159 | 150 160 160 Slowest Speed 200 | 160 160 200 Overloaded Moves . | . . . Propulsion Burnouts . | . . . Robots Hopped . | . . . Cave-ins Triggered . | . . . Exploration Rate (%) 37 | 4 37 71 Regions Visited 2 Branch Regions 1 Pre-discovered Areas . | . . . Known Exits Taken . | . . . Unknown Exits Taken 2 | 1 1 . Scrap Searched 1 | . . 1 Spaces Dug . | . . . Terrain Destroyed 17 | . . 17 Melee . | . . . Projectile . | . . . AOE 17 | . . 17 Terrain Rammed . | . . . Walls Destroyed . | . . . Machines Disabled . | . . . Actions | -11 -10 -10 --------- Run | Yrd Mat Min Total 587 | 41 148 398 Wait 45 | 1 . 44 Move 497 | 33 133 331 Hop . | . . . Pick Up 5 | 1 1 3 Fast Attach 7 | 6 1 . Attach 1 | . . 1 Detach . | . . . Swap 2 | . . 2 Drop . | . . . Fire 29 | . 13 16 Melee . | . . . Ram . | . . . Kick . | . . . Crush 1 | . . 1 Escape Stasis . | . . . Rewire . | . . . Trap . | . . . Miscellaneous . | . . . Route ------- -11/Scrapyard -10/Materials -10/Mines History --------- Turn | Location | Event 12 | -11/Scrapyard | Discovered new exit (range 13) 62 | -11/Scrapyard | Entered Materials 298 | -10/Materials | Discovered new exit (range 8) 309 | -10/Materials | Build established: Mutant 314 | -10/Materials | Entered Mines 348 | -10/Mines | Found a damaged Exp. Sensor Array with a note attached 351 | -10/Mines | Found Prototype Device 379 | -10/Mines | Learned 2 Materials zone layouts 647 | -10/Mines | Learned Materials stockpile data 654 | -10/Mines | Excavation squad dispatched 654 | -10/Mines | A large section of the Mines collapsed 860 | -10/Mines | Core integrity fell below 50% 890 | -10/Mines | Lost 5 parts (1p1n1u2w) 904 | -10/Mines | Excavation squad dispatched 934 | -10/Mines | Core integrity fell below 20% 935 | -10/Mines | Destroyed by G-34 Mercenary with Small Laser Last Messages --------------- Acquired 10 matter. Acquired 8 matter. R-06 Scavenger destroyed. EM Pulse Gun destroyed. R-06 Scavenger destroyed. YI-UF0 mumbles something. Lgt. Ion Engine destroyed. Lgt. Treads destroyed. The unstable cave ceiling collapses. YI-UF0 suffers critical hit (Destroy). Destroyed Carbon-fiber Leg. Lgt. Assault Rifle destroyed. The unstable cave ceiling collapses. Heat Sink destroyed. YI-UF0 destroyed. The unstable cave ceiling collapses. ALERT: Derelict activity in mines confirmed. Dispatching additional escorted excavation squad. Slammed into T-07 Excavator. Lgt. Treads destroyed. Map ----- +----------------------------------------------------+ | | | | | | | | | | | | | | | | | | | | | ???????????????????????????????????????? | | ??????????????######???????????????????? | | ?????????????# ??????????????????? | | ?????????????# ??????????????????? | | ?????????????# ?????? ????????????? | | ????????????? ???#? ?????????????? | | ?????????????? ?? # ??????????????? | | ?????????????? ?? #??????????????? | | ?????????????? ? #???????????????? | | ??????????????# u## ????????????????? | | ??????????##### # ?????????????????? | | ?????????## %= ??????????????????? | | ?????????# ???????????????????? | | ?????????# t#????????????????????? | | ??????????# ? g##????????????????????? | | ??????????# ##@ #????????????????????? | | ???????????# #????????????????????? | | ???????????## t #????????????????????? | | ????????????####g ##???????????????????? | | ???????????????# g ##??????????????????? | | ?????????####??## g #??????????????????? | | ????????## ##??## #??????????????????? | | ????????# ##?##r ##?????????????????? | | ????????# ### ##????????????????? | | ???????## ##???????????????? | | ??????## #???????????????? | | ????### #???????????????? | | ???## ##t##???????????????? | | ???# ### ###t#????????????????? | | ???#####?#### # ##???????????????? | | ????????????## #????????????????? | | ?????????????# ### #???????????????? | | ?????????????# ##??# #???????????????? | | ?????????????## #??? ##???????????????? | | ??????????????# #???# #????????????????? | | ??????????????# #???# #??????#?????????? | | ??????????????# #?### ###??? #?????????? | | ??????????????# ### ##? #?????????? | | ??????????????# ## #?????????? | | ??????????????#### ##????????? | +----------------------------------------------------+ Best States ------------- Heat Dissipation 35 Energy Generation 10 Energy Capacity 125 Matter Stores 300 Matter Capacity 300 Sight Range 16 Terrain Scan Density 10 Evasion (%) 40 Recoil Reduction 2 Item Schematics ----------------- None Robot Schematics ------------------ None Fabricated ------------ Nothing Alien Tech Used ----------------- None Achievements -------------- None Challenges ------------ None Game ------ Seed ExpertHeartSuperbattery Manual? 0 Play Time 00:07:29 Cumulative 261.7 hours Start 2024.09.01 @ 10:26:13 End 2024.09.01 @ 10:30:52 Sessions 1 Manual Loads 0 Difficulty Rogue Special Mode None Game No. 488 Rogue 486 Adventurer 2 Explorer 0 Win Type - Total 15 Types 11/0/1/2/1/0/0/0/0 Lore% 74 Gallery% 69 Achievement% 58 Wizard Run 0 Options --------- Layout 0 ASCII 0 Keyboard 1 Movement Numpad Keybinds 1 Fullscreen 2 Font 18/SmallcapsGlow Map View 76x50 Zoom Use 0% Tactical HUD 1 Map Filters NONE Filters NONE Steam 1 RUN: e9a98b86-e61f-4b96-b419-f606bdac6a63